bitfinex-derivatives/quotes_SOLF0:USTF0_20260202
["timestamp","ask_amount","ask_price","bid_price","bid_amount"]
[1769997414854,11.49729995,102.25,102.17,12.56461205]
[1769997415354,11.49819995,102.24,102.17,3.74751205]
[1769997415652,2.68689995,102.23,102.15,140.93021205]
[1769997415846,238.8,102.24,102.17,3.74751205]
[1769997417250,238.8,102.24,102.17,13.53151205]
[1769997417451,238.8,102.24,102.17,22.34851205]
[1769997417647,2.64566348,102.23,102.14,279.35504979]
[1769997417952,2.64566348,102.22,102.14,3.74751205]
[1769997418349,242.02566348,102.22,102.14,3.74751205]
[1769997418649,2.64566348,102.22,102.14,13.53151205]
[1769997418855,242.06566348,102.22,102.14,13.53151205]
[1769997419054,11.45886348,102.22,102.14,3.74751205]
[1769997419355,250.87886348,102.22,102.14,3.74751205]
[1769997419755,250.87886348,102.22,102.14,22.35111205]
[1769997420660,250.87886348,102.22,102.15,12.56631205]
[1769997420956,137.0638,102.24,102.16,3.74751205]
[1769997420957,8.8119,102.24,102.16,3.74751205]
[1769997421153,2.63561689,102.23,102.16,3.74751205]
[1769997421357,2.63561689,102.22,102.14,12.56641205]
[1769997421655,11.44941689,102.21,102.14,3.74751205]
[1769997422046,11.44941689,102.21,102.12,17.43153774]
[1769997422047,242.69561689,102.2,102.12,12.56821205]
[1769997422251,2.63561689,102.2,102.12,12.56821205]
[1769997422454,11.45235867,102.19,102.12,3.74751205]
[1769997422956,2.63665867,102.17,102.1,387.04342602]
[1769997423261,2.63665867,102.14,102.05,3.74751205]
[1769997423555,2.63665867,102.1,102.02,3.74751205]
[1769997423952,2.63665867,102.1,102.03,3.74751205]
[1769997425950,2.63665867,102.1,102.01,3.74751205]
[1769997426352,2.63665867,102.1,101.99,267.34]
[1769997426353,2.81249043,102.08,101.99,267.34]
[1769997426550,2.81249043,102.08,102.0,3.74751205]
[1769997427156,2.81249043,102.07,102.0,3.74751205]
[1769997427354,2.81249043,102.06,101.97,5.44918194]
[1769997427550,2.81972431,102.05,101.97,5.44918194]
[1769997429253,2.82566749,102.04,101.97,3.74751205]
[1769997430151,2.82566749,102.04,101.95,3.78412215]
[1769997430353,2.82184039,102.03,101.95,3.78412215]
[1769997430555,240.24,102.04,101.95,3.78412215]
[1769997431158,140.13024039,102.06,101.96,3.78412215]
[1769997431363,2.82184039,102.05,101.96,3.78412215]
[1769997432356,2.82773002,102.04,101.96,3.78412215]
[1769997433560,2.82773002,102.03,101.95,3.78412215]
[1769997436854,2.82773002,102.03,101.96,3.78412215]
[1769997437558,11.65723002,102.03,101.96,3.78412215]
[1769997437766,2.81986445,102.02,101.96,3.78412215]
[1769997438357,2.81986445,102.02,101.94,379.34983884]
[1769997438661,2.81986445,102.02,101.94,383.13396099]
[1769997439051,2.81986445,102.02,101.95,3.78412215]
[1769997439959,2.81986445,102.02,101.95,12.62002215]
[1769997441258,3.09603488,102.05,101.97,3.78412215]
[1769997441564,3.09603488,102.04,101.97,3.78412215]
[1769997442457,3.09603488,102.04,101.97,12.61822215]
[1769997443965,8.8272,102.06,101.99,3.78412215]
[1769997445165,11.92649763,102.06,101.99,3.78412215]
[1769997446260,8.8277,102.05,101.99,3.78412215]
[1769997446564,8.8277,102.05,101.96,3.78412215]
[1769997446565,3.12653902,102.03,101.96,3.78412215]
[1769997447166,3.12653902,102.06,101.98,3.78412215]
[1769997447961,239.3,102.07,101.99,3.78412215]
[1769997448164,3.13215221,102.08,102.01,3.78412215]
[1769997448563,8.8259,102.07,102.01,3.78412215]
[1769997449266,3.13215221,102.08,102.01,3.78412215]
[1769997449665,3.13215221,102.08,102.01,12.61502215]
[1769997449861,149.20435221,102.11,102.03,3.78412215]
[1769997450062,3.13215221,102.11,102.03,3.78412215]
[1769997450463,11.95455221,102.11,102.03,3.78412215]
[1769997450767,11.95455221,102.11,102.03,12.61312215]
[1769997450968,11.95455221,102.11,102.04,3.78412215]
[1769997451168,11.95455221,102.11,102.05,3.78412215]
[1769997451466,3.13215221,102.11,102.05,3.78412215]
[1769997452869,242.29106193,102.13,102.05,3.78412215]
[1769997453367,3.11106193,102.13,102.07,8.8256]
[1769997453565,11.92976193,102.16,102.07,12.60972215]
[1769997453760,3.11106193,102.18,102.1,3.78412215]
[1769997453960,3.11106193,102.17,102.1,3.78412215]
[1769997454264,3.09953015,102.16,102.08,3.78412215]
[1769997454869,3.09953015,102.15,102.08,3.78412215]
[1769997455266,242.23953015,102.17,102.09,3.78412215]
[1769997455671,251.05723015,102.17,102.09,12.60802215]
[1769997456164,3.00826801,102.16,102.09,3.78412215]
[1769997456571,3.00826801,102.15,102.07,8.8251]
[1769997456766,3.00826801,102.15,102.07,12.60922215]
[1769997457372,11.82736801,102.15,102.07,12.60922215]
[1769997457968,3.00826801,102.15,102.08,8.8247]
[1769997458274,250.98417121,102.17,102.09,3.54671292]
[1769997458963,250.98417121,102.17,102.09,12.37031292]
[1769997459167,250.98417121,102.17,102.1,3.54671292]
[1769997459668,242.16647121,102.17,102.1,3.54671292]
[1769997462689,2.85636864,102.16,102.1,3.54671292]
[1769997463587,2.85636864,102.15,102.07,7.68669307]
[1769997463777,2.85636864,102.13,102.05,3.54671292]
[1769997463982,2.84139023,102.1,102.02,3.54671292]
[1769997464185,2.84139023,102.09,102.02,3.54671292]
[1769997464382,243.80139023,102.09,102.02,3.54671292]
[1769997464582,2.84139023,102.08,102.02,3.54671292]
[1769997464889,240.96,102.09,102.02,3.54671292]
[1769997465188,2.84139023,102.1,102.03,12.37591292]
[1769997465980,2.84139023,102.1,102.03,3.54671292]
[1769997466179,2.92136712,102.09,102.0,3.54671292]
[1769997466487,2.93058046,102.08,102.0,3.54671292]
[1769997466887,11.75578046,102.08,102.0,12.37851292]
[1769997467791,241.34,102.09,102.02,3.71154798]
[1769997467979,140.16828046,102.11,102.03,3.71154798]
[1769997467980,2.93058046,102.11,102.03,3.71154798]
[1769997468288,2.82750742,102.1,102.03,3.71154798]
[1769997468490,11.65080742,102.1,102.03,3.71154798]
[1769997468691,2.82750742,102.1,102.03,3.71154798]
[1769997469190,2.82750742,102.1,102.03,12.54074798]
[1769997469689,11.65100742,102.1,102.03,3.71154798]
[1769997469888,2.82750742,102.09,102.03,3.71154798]
[1769997470890,11.6399829,102.08,102.0,3.71154798]
[1769997471394,11.6399829,102.08,102.01,3.71154798]
[1769997471395,2.8149829,102.08,102.01,3.71154798]
[1769997472686,2.8149829,102.08,102.01,12.54244798]
[1769997472993,244.51036419,102.1,102.03,3.71154798]
[1769997473193,2.77036419,102.1,102.03,3.71154798]
[1769997474092,2.77036419,102.1,102.04,8.8284]
[1769997475688,2.77036419,102.1,102.04,12.53994798]
[1769997476286,253.93899563,102.12,102.05,12.53894798]
[1769997476495,253.93899563,102.12,102.06,3.71154798]
[1769997476496,245.11749563,102.12,102.06,3.71154798]
[1769997476985,245.11749563,102.12,102.04,137.3311]
[1769997477195,245.11749563,102.12,102.04,3.71154798]
[1769997478391,245.11749563,102.12,102.05,12.53894798]
[1769997478994,2.78799485,102.11,102.05,3.71154798]
[1769997480291,251.1615,102.12,102.06,3.71154798]
[1769997480592,242.34,102.12,102.06,3.71154798]
[1769997480794,2.89877912,102.13,102.06,3.71154798]
[1769997482283,11.71947912,102.13,102.06,12.53814798]
[1769997482488,2.91499765,102.12,102.06,3.71154798]
[1769997482787,11.73649765,102.12,102.06,3.71154798]
[1769997483988,15.73148264,102.14,102.07,3.71154798]
[1769997484392,6.91098264,102.14,102.07,3.71154798]
[1769997484590,14.59767571,102.17,102.08,3.71154798]
[1769997484895,2.91098264,102.16,102.08,3.71154798]
[1769997485093,2.91098264,102.14,102.06,3.71154798]
[1769997486090,2.91098264,102.14,102.07,3.71154798]
[1769997486288,2.91098264,102.14,102.08,3.71154798]
[1769997486591,2.91098264,102.14,102.06,3.71154798]
[1769997487391,11.73098264,102.14,102.07,12.53654798]
[1769997487586,137.1746,102.16,102.07,3.71154798]
[1769997487786,246.61601312,102.16,102.07,3.71154798]
[1769997488191,2.91601312,102.16,102.07,3.71154798]
[1769997488391,2.89504963,102.15,102.07,3.71154798]
[1769997488796,2.89504963,102.14,102.07,3.71154798]
[1769997489497,2.89504963,102.16,102.08,3.75749607]
[1769997489700,2.89504963,102.18,102.1,3.75749607]
[1769997490196,2.89504963,102.18,102.11,12.57979607]
[1769997490393,246.55504963,102.18,102.11,3.75749607]
[1769997490591,2.91013505,102.17,102.11,3.75749607]
[1769997491294,11.72733505,102.17,102.11,3.75749607]
[1769997491492,2.91013505,102.17,102.09,3.75749607]
[1769997491888,11.72733505,102.17,102.09,12.58069607]
[1769997492088,11.72733505,102.17,102.1,3.75749607]
[1769997492988,2.91013505,102.17,102.1,12.58069607]
[1769997494197,2.91013505,102.17,102.11,8.822]
[1769997495096,2.91013505,102.17,102.1,12.58069607]
[1769997495900,11.72763505,102.17,102.1,12.58069607]
[1769997496999,2.89597154,102.15,102.08,3.75749607]
[1769997497504,247.87597154,102.15,102.08,3.75749607]
[1769997499102,247.87597154,102.15,102.09,12.58079607]
[1769997499298,2.89597154,102.15,102.09,12.58079607]
[1769997499498,2.89597154,102.15,102.09,3.75749607]
[1769997499803,11.71701048,102.14,102.07,12.58249607]
[1769997501299,255.96304955,102.16,102.09,3.75749607]
[1769997501505,248.27635648,102.16,102.09,3.75749607]
[1769997503305,2.98098511,102.18,102.1,3.75749607]
[1769997503503,249.10098511,102.18,102.1,3.75749607]
[1769997504013,257.91808511,102.18,102.11,8.8223]
[1769997504200,2.97288602,102.17,102.1,3.75749607]
[1769997505410,11.79098602,102.16,102.1,12.58069607]
[1769997506117,11.79098602,102.16,102.1,3.75749607]
[1769997506514,2.98493784,102.14,102.07,3.75749607]
[1769997506710,2.98493784,102.13,102.07,3.75749607]
[1769997507109,11.80643784,102.12,102.04,3.75749607]
[1769997507407,2.98493784,102.11,102.03,3.75749607]
[1769997507612,2.98493784,102.11,102.04,3.75749607]
[1769997509313,2.98493784,102.11,102.05,8.8275]
[1769997509514,2.98493784,102.11,102.04,3.75749607]
[1769997510510,8.8206,102.14,102.06,3.75749607]
[1769997510716,249.95878905,102.15,102.07,3.75749607]
[1769997511014,3.03878905,102.15,102.09,3.75749607]
[1769997511409,3.03878905,102.16,102.1,3.75749607]
[1769997511609,3.03878905,102.16,102.08,3.75749607]
[1769997511811,11.85768905,102.15,102.08,3.75749607]
[1769997513211,11.82874327,102.14,102.08,3.75749607]
[1769997516718,11.79783376,102.13,102.06,3.75749607]
[1769997517121,2.97713376,102.13,102.06,12.58409607]
[1769997517814,2.97713376,102.13,102.07,8.8258]
[1769997518022,2.97713376,102.13,102.07,12.32711741]
[1769997518319,246.6,102.14,102.07,12.32711741]
[1769997518515,249.57531176,102.14,102.07,12.32711741]
[1769997518720,258.39511176,102.14,102.07,12.32711741]
[1769997518915,2.97531176,102.13,102.07,3.50131741]
[1769997519419,11.79601176,102.13,102.07,3.50131741]
[1769997519815,246.6,102.14,102.07,3.50131741]
[1769997520010,249.47400391,102.14,102.07,3.50131741]
[1769997521319,249.47400391,102.14,102.07,12.32691741]
[1769997521716,249.47400391,102.14,102.07,3.50131741]
[1769997522321,2.83104766,102.17,102.1,3.50131741]
[1769997522618,2.83104766,102.17,102.1,11.17483666]
[1769997522818,2.83104766,102.17,102.11,12.32361741]
[1769997523616,2.83104766,102.17,102.09,12.32471741]
[1769997523920,2.83104766,102.16,102.09,12.32471741]
[1769997525018,2.83104766,102.16,102.09,3.50131741]
[1769997525218,2.83104766,102.16,102.07,24.14437112]
[1769997525219,11.65345242,102.15,102.07,24.14437112]
[1769997525422,11.65345242,102.15,102.07,3.50131741]
[1769997525724,11.65345242,102.15,102.08,3.50131741]
[1769997526418,11.65345242,102.15,102.08,12.32601741]
[1769997527014,247.96,102.16,102.1,3.47111691]
[1769997527422,2.85351142,102.14,102.07,27.61548803]
[1769997527619,2.85351142,102.14,102.07,3.47111691]
[1769997528023,2.85351142,102.12,102.05,3.47111691]
[1769997528421,2.85791217,102.11,102.03,27.61548803]
[1769997528722,11.68141217,102.1,102.03,3.47111691]
[1769997529617,2.85791217,102.1,102.04,3.47111691]
[1769997529823,259.99971217,102.12,102.04,3.47111691]
[1769997530216,2.83802551,102.11,102.04,3.47111691]
[1769997530422,11.66052551,102.11,102.04,12.29951691]
[1769997531320,2.83802551,102.11,102.04,12.29951691]
[1769997534721,257.3815,102.12,102.02,3.47111691]
[1769997534722,2.74106497,102.1,102.02,3.47111691]
[1769997534922,251.46106497,102.1,102.02,3.47111691]
[1769997535220,11.56516497,102.09,102.02,3.47111691]
[1769997535428,2.74106497,102.08,102.02,3.47111691]
[1769997536327,2.74106497,102.08,102.02,12.30121691]
[1769997536528,251.48279016,102.1,102.02,3.47111691]
[1769997536729,251.48279016,102.1,102.03,3.47111691]
[1769997537230,2.76279016,102.11,102.04,12.29941691]
[1769997537430,2.76279016,102.11,102.04,3.47111691]
[1769997537729,11.58519016,102.11,102.04,12.29941691]
[1769997537931,2.76279016,102.11,102.04,12.29941691]
[1769997538431,248.94,102.12,102.05,12.29851691]
[1769997538726,11.56560275,102.13,102.06,3.47111691]
[1769997539125,2.74420275,102.13,102.06,12.29771691]
[1769997539818,249.36,102.15,102.08,3.47111691]
[1769997540226,2.74420275,102.16,102.08,3.47111691]
[1769997540425,2.71476624,102.18,102.1,3.47111691]
[1769997540630,2.71476624,102.2,102.11,3.47111691]
[1769997540929,2.71476624,102.2,102.12,3.47111691]
[1769997541329,2.71476624,102.2,102.13,3.47111691]
[1769997541930,2.71476624,102.2,102.13,12.29151691]
[1769997542335,2.71476624,102.2,102.13,3.47111691]
[1769997544240,249.62,102.21,102.14,3.47111691]
[1769997544436,10.42571278,102.24,102.15,3.47111691]
[1769997544639,252.53219353,102.24,102.15,3.47111691]
[1769997544839,252.53219353,102.24,102.15,149.47281691]
[1769997545039,252.53219353,102.24,102.16,3.47111691]
[1769997545342,2.75219353,102.23,102.16,3.47111691]
[1769997546440,2.75211525,102.26,102.17,3.47111691]
[1769997547345,252.37211525,102.26,102.18,3.47111691]
[1769997548047,2.75892428,102.25,102.18,3.47111691]
[1769997549438,2.73567502,102.24,102.15,140.82655544]
[1769997549642,2.73567502,102.24,102.16,3.64355544]
[1769997549643,252.75567502,102.24,102.16,3.64355544]
[1769997551348,252.75567502,102.24,102.16,12.46135544]
[1769997551641,2.70767111,102.23,102.16,12.46135544]
[1769997553551,253.60767111,102.23,102.16,3.64355544]
[1769997554548,2.68167397,102.22,102.16,3.64355544]
[1769997554748,2.68167397,102.22,102.14,3.64355544]
[1769997555151,254.02167397,102.21,102.14,3.64355544]
[1769997556447,2.68017849,102.2,102.13,8.8199]
[1769997556651,2.68017849,102.2,102.12,3.64355544]
[1769997556855,254.48017849,102.2,102.12,3.64355544]
[1769997558251,11.49507849,102.2,102.12,12.46495544]
[1769997558454,263.69507849,102.2,102.12,12.46495544]
[1769997559454,2.68813161,102.19,102.12,12.46495544]
[1769997559747,261.0149,102.2,102.12,12.46495544]
[1769997559748,2.68813161,102.18,102.12,3.64355544]
[1769997559955,2.68813161,102.18,102.09,259.34355544]
[1769997559956,2.68813161,102.17,102.09,259.34355544]
[1769997561050,2.68813161,102.17,102.09,3.64355544]
[1769997561455,11.50553161,102.17,102.09,12.46755544]
[1769997561956,2.69535489,102.15,102.09,3.64355544]
[1769997564956,2.69483967,102.14,102.08,8.8248]
[1769997565154,2.69483967,102.14,102.07,3.64355544]
[1769997565961,2.69483967,102.13,102.07,3.64355544]
[1769997566257,256.21427135,102.15,102.08,3.64355544]
[1769997566564,2.69427135,102.13,102.06,3.64355544]
[1769997566947,256.37427135,102.12,102.06,3.64355544]
[1769997567156,11.51577135,102.12,102.06,3.64355544]
[1769997567361,2.69427135,102.1,102.02,3.64355544]
[1769997567961,2.69427135,102.09,102.02,3.64355544]
[1769997568463,2.69427135,102.09,102.02,12.47345544]
[1769997569363,16.49886349,102.11,102.04,3.64355544]
[1769997569364,11.69876597,102.11,102.04,3.64355544]
[1769997569564,2.87576597,102.1,102.04,3.64355544]
[1769997569861,256.73576597,102.1,102.04,3.64355544]
[1769997570062,265.55916597,102.1,102.02,3.64355544]
[1769997570264,256.73576597,102.1,102.02,3.64355544]
[1769997570856,256.73576597,102.1,102.03,8.8291]
[1769997571254,137.2242,102.12,102.02,3.64355544]
[1769997571255,2.98193247,102.12,102.04,3.64355544]
[1769997571454,257.42193247,102.12,102.04,3.64355544]
[1769997572259,2.98193247,102.12,102.04,3.64355544]
[1769997572461,257.68193247,102.12,102.05,8.8273]
[1769997573163,257.68193247,102.12,102.05,12.47085544]
[1769997575464,2.84174872,102.11,102.03,20.14791893]
[1769997575664,2.84174872,102.1,102.01,141.01485544]
[1769997575859,2.84174872,102.09,102.02,3.64355544]
[1769997576462,2.81990704,102.08,102.02,3.64355544]
[1769997576660,258.77990704,102.08,102.02,3.64355544]
[1769997576862,2.81990704,102.07,102.0,12.47545544]
[1769997578971,2.81990704,102.07,102.01,8.8308]
[1769997579360,256.44,102.08,102.02,3.74317907]
[1769997579664,259.2171536,102.09,102.03,3.74317907]
[1769997581165,2.77324173,102.08,102.01,3.74317907]
[1769997581469,259.87324173,102.08,102.01,3.74317907]
[1769997582167,2.77324173,102.08,102.02,12.57327907]
[1769997583665,256.24,102.09,102.03,3.74317907]
[1769997583861,2.75302934,102.1,102.03,3.74317907]
[1769997585470,2.75302934,102.1,102.04,12.57157907]
[1769997586470,2.75302934,102.1,102.04,3.74317907]
[1769997586670,2.65218294,102.09,102.02,3.63780737]
[1769997586875,2.65218294,102.11,102.03,3.63780737]
[1769997587171,2.65218294,102.11,102.05,8.8275]
[1769997587573,2.65218294,102.11,102.05,3.63780737]
[1769997588574,2.65218294,102.11,102.05,12.46530737]
[1769997589167,2.65218294,102.11,102.05,3.63780737]
[1769997589472,2.65218294,102.11,102.02,3.63780737]
[1769997589668,269.59823618,102.1,102.02,3.63780737]
[1769997589868,258.14,102.1,102.04,3.63780737]
[1769997590066,260.69638059,102.1,102.04,3.63780737]
[1769997590263,2.55638059,102.1,102.04,3.63780737]
[1769997590465,260.81638059,102.1,102.04,3.63780737]
[1769997591075,2.55638059,102.09,102.02,3.63780737]
[1769997591670,2.55638059,102.09,102.03,8.8292]
[1769997592771,2.55638059,102.09,102.0,147.1684]
[1769997592978,2.61319214,102.08,102.01,8.8303]
[1769997593172,2.61319214,102.08,102.01,12.46810737]
[1769997593575,2.61319214,102.07,102.01,3.63780737]
[1769997594479,2.63174965,102.08,102.01,3.63780737]
[1769997594879,2.63174965,102.08,102.01,12.46870737]
[1769997595279,2.63174965,102.08,102.01,3.63780737]
[1769997595473,11.45674965,102.08,102.01,3.63780737]
[1769997595677,2.63174965,102.07,102.01,3.63780737]
[1769997596178,2.63174965,102.07,102.01,12.46880737]
[1769997597172,2.62498934,102.03,101.96,12.47270737]
[1769997597375,261.66498934,102.05,101.97,3.63780737]
[1769997597684,261.66498934,102.05,101.98,12.47120737]
[1769997597880,261.74498934,102.07,101.99,3.63780737]
[1769997599185,2.67468127,102.06,101.99,3.63780737]
[1769997599383,2.67468127,102.06,101.99,12.47040737]
[1769997601385,2.70629062,102.04,101.96,3.63780737]
[1769997601684,262.72629062,102.06,101.98,3.63780737]
[1769997602280,262.86629062,102.06,101.98,3.63780737]
[1769997602584,2.69699672,102.08,102.0,141.02130737]
[1769997602785,2.69699672,102.08,102.01,3.63780737]
[1769997603477,11.52209672,102.08,102.01,12.46870737]
[1769997603678,2.69699672,102.06,101.97,3.63780737]
[1769997603986,2.69699672,102.06,101.99,3.63780737]
[1769997603987,260.44,102.05,101.99,3.63780737]
[1769997604279,263.13699672,102.06,101.99,3.63780737]
[1769997604483,2.6597289,102.04,101.95,3.63780737]
[1769997604787,2.6597289,102.03,101.95,3.63780737]
[1769997605084,2.6597289,102.02,101.95,3.63780737]
[1769997605882,11.4900289,102.02,101.95,3.63780737]
[1769997607986,11.4900289,102.02,101.95,12.47390737]
[1769997607987,2.6597289,102.02,101.95,12.47390737]
[1769997608885,2.6597289,102.02,101.9,141.29599877]
[1769997608886,2.85091898,102.0,101.9,141.29599877]
[1769997609086,2.85091898,101.96,101.88,3.77689877]
[1769997609386,2.85091898,101.98,101.9,3.77689877]
[1769997609585,2.85091898,101.98,101.91,3.77689877]
[1769997609886,260.26,101.99,101.92,3.77689877]
[1769997610387,271.8778922,101.99,101.92,3.77689877]
[1769997610583,2.7849922,101.98,101.92,3.77689877]
[1769997610779,260.26,101.99,101.92,3.77689877]
[1769997611187,263.0449922,101.99,101.92,3.77689877]
[1769997611387,263.0449922,101.99,101.89,141.31039877]
[1769997611687,263.0449922,101.99,101.9,3.77689877]
[1769997612182,11.6178922,101.99,101.91,3.77689877]
[1769997612692,2.7849922,101.99,101.91,3.77689877]
[1769997613784,260.86,102.0,101.92,3.77689877]
[1769997614086,140.21729522,101.98,101.88,5.48382703]
[1769997614286,2.80449522,101.96,101.89,3.77689877]
[1769997614983,2.80449522,101.98,101.91,3.77689877]
[1769997615387,2.80449522,101.98,101.92,3.77689877]
[1769997615785,263.66449522,102.0,101.92,3.77689877]
[1769997616188,263.66449522,102.0,101.93,3.77689877]
[1769997616687,260.86,102.0,101.93,12.61439877]
[1769997616890,3.08257708,102.02,101.95,3.77689877]
[1769997617192,3.08257708,102.05,101.96,3.77689877]
[1769997617388,3.08257708,102.02,101.94,8.8364]
[1769997617591,3.08257708,102.02,101.94,3.77689877]
[1769997617885,3.08257708,102.02,101.95,3.77689877]
[1769997618085,3.08257708,102.02,101.96,3.77689877]
[1769997620095,3.18696006,102.04,101.97,3.77689877]
[1769997620600,3.18696006,102.04,101.98,12.61029877]
[1769997621197,3.18696006,102.02,101.94,7.67586349]
[1769997621393,3.18696006,102.0,101.93,3.77689877]
[1769997622298,3.18696006,102.0,101.93,12.61409877]
[1769997623296,3.17455137,102.04,101.95,3.77689877]
[1769997624096,12.00305137,102.04,101.96,12.61209877]
[1769997624300,12.00305137,102.04,101.97,3.77689877]
[1769997625703,260.98,102.05,101.97,3.77689877]
[1769997626001,260.98,102.05,101.98,3.77689877]
[1769997626196,12.08635923,102.06,101.98,3.77689877]
[1769997626399,273.20635923,102.06,101.98,3.77689877]
[1769997626798,3.26097019,102.04,101.96,16.51046349]
[1769997627004,3.26097019,102.04,101.96,20.28736226]
[1769997627201,3.26097019,102.04,101.97,3.77689877]
[1769997627806,3.26097019,102.04,101.97,12.61119877]
[1769997628013,3.26097019,102.04,101.95,3.77689877]
[1769997628604,8.8294,102.03,101.95,3.77689877]
[1769997628912,11.91813865,102.03,101.95,3.77689877]
[1769997629107,11.91673865,102.05,101.97,8.8342]
[1769997629312,11.91673865,102.05,101.98,3.77689877]
[1769997629609,3.08873865,102.05,101.98,3.77689877]
[1769997630806,137.3772,102.01,101.93,36.561846]
[1769997631009,137.3772,102.01,101.9,161.20278638]
[1769997631010,187.46,102.0,101.91,7.151846]
[1769997631210,406.45184344,101.99,101.91,7.151846]
[1769997631420,145.12494344,101.97,101.88,7.151846]
[1769997632415,270.3556,101.96,101.88,7.151846]
[1769997633415,261.78,101.95,101.88,7.151846]
[1769997633811,261.78,101.95,101.88,15.993846]
[1769997634013,7.69284344,101.94,101.86,7.12412193]
[1769997634311,261.78,101.95,101.86,7.12412193]
[1769997634512,261.78,101.95,101.87,7.1339438]
[1769997635118,16.52864344,101.96,101.87,7.1339438]
[1769997635318,262.34,101.95,101.87,7.1339438]
[1769997635713,262.48,101.94,101.87,7.1339438]
[1769997636213,153.96864344,101.96,101.87,7.1339438]
[1769997636407,153.96864344,101.96,101.84,137.6008]
[1769997636408,153.99744344,101.94,101.84,7.10989721]
[1769997637009,146.321,101.93,101.84,7.10989721]
[1769997637515,8.8384,101.93,101.84,7.10989721]
[1769997638110,146.3186,101.93,101.84,7.10989721]
[1769997639414,146.3348,101.92,101.84,7.10989721]
[1769997639609,7.69284344,101.94,101.84,7.10989721]
[1769997639812,262.7,101.95,101.87,7.13879213]
[1769997640216,145.13424344,101.96,101.87,7.13879213]
[1769997640412,262.86,101.96,101.87,7.13879213]
[1769997640813,262.86,101.96,101.89,7.1211803]
[1769997641022,262.86,101.96,101.9,7.1211803]
[1769997641224,145.08304344,102.0,101.9,7.1211803]
[1769997641408,263.0,101.99,101.9,7.1211803]
[1769997641809,263.0,101.99,101.91,7.1211803]
[1769997642117,137.4,101.99,101.91,7.1211803]
[1769997642417,263.22,101.98,101.91,7.1211803]
[1769997642619,272.0538,101.98,101.91,7.1211803]
[1769997642817,263.22,101.98,101.91,7.1211803]
[1769997643213,263.56,101.99,101.92,16.00753718]
[1769997643819,263.56,101.99,101.92,7.16893718]
[1769997644015,272.3929,101.99,101.92,7.16893718]
[1769997644222,263.92,101.99,101.92,7.16893718]
[1769997644518,264.04,102.0,101.93,7.2023108]
[1769997644921,137.3432,102.04,101.95,7.2023108]
[1769997645119,264.22,102.03,101.95,7.2023108]
[1769997645617,273.0494,102.03,101.95,7.2023108]
[1769997646124,264.22,102.03,101.95,16.0383108]
[1769997646319,264.22,102.03,101.96,7.23876935]
[1769997646514,264.22,102.03,101.98,7.23876935]
[1769997646721,273.6474,102.06,101.98,7.23876935]
[1769997646919,264.82,102.06,101.98,14.93161279]
[1769997647113,264.82,102.06,101.99,16.07116935]
[1769997647313,144.94164344,102.11,102.01,7.23876935]
[1769997647621,402.3718,102.1,102.01,7.23876935]
[1769997647819,146.0897,102.09,102.01,7.23876935]
[1769997648118,144.95824344,102.09,101.99,16.10990154]
[1769997648320,137.2911,102.07,101.99,7.27770154]
[1769997648521,137.3053,102.06,101.96,14.97054498]
[1769997648723,402.4791,102.05,101.96,7.27770154]
[1769997649624,265.3,102.04,101.96,7.27770154]
[1769997650118,137.3586,102.02,101.92,7.28384351]
[1769997650322,265.6,102.01,101.93,7.28384351]
[1769997650726,410.66584344,102.01,101.93,7.28384351]
[1769997651123,145.06584344,102.01,101.93,7.28384351]
[1769997651426,403.2459,102.0,101.91,7.28384351]
[1769997652319,146.2321,101.99,101.91,7.28384351]
[1769997652513,146.2321,101.99,101.89,8.8408]
[1769997652514,145.09164344,101.99,101.89,8.8408]
[1769997652719,403.7736,101.98,101.89,7.2755034]
[1769997652919,145.11874344,101.97,101.87,8.8425]
[1769997653117,145.11874344,101.97,101.88,144.8214034]
[1769997653118,7.69284344,101.97,101.88,144.8214034]
[1769997653323,266.36,101.98,101.89,7.2755034]
[1769997654423,266.48,101.99,101.91,7.26609128]
[1769997655731,275.3129,101.99,101.91,7.26609128]
[1769997655923,403.879,101.99,101.91,7.26609128]
[1769997656128,267.1,101.98,101.88,161.36445216]
[1769997656429,267.1,101.98,101.89,7.28410872]
[1769997656631,8.835,101.97,101.89,7.28410872]
[1769997657524,267.24,101.98,101.9,7.28410872]
[1769997658231,276.2538,101.98,101.9,7.28410872]
[1769997658628,404.8324,101.98,101.9,7.28410872]
[1769997658930,404.8324,101.98,101.88,16.53464344]
[1769997658931,16.52744344,101.97,101.88,16.1261141]
[1769997659133,16.52744344,101.97,101.89,7.2843141]
[1769997659432,267.84,101.96,101.89,7.2843141]
[1769997659831,276.6755,101.96,101.89,7.2843141]
[1769997660226,267.84,101.96,101.89,7.2843141]
[1769997660731,267.84,101.96,101.89,16.1255141]
[1769997660927,145.06534344,102.01,101.9,7.28404258]
[1769997661126,268.4,102.0,101.91,7.28404258]
[1769997661328,268.6,101.99,101.91,16.12324258]
[1769997661627,268.6,101.99,101.91,7.28404258]